[Event "Titled Tuesday Blitz March 07 Early 2023"]
[White "Mohamed, Saeed Laily"]
[Black "Womacka, Mathias"]
[WhiteFideId "9314946"]
[BlackFideId "4611390"]
[WhiteElo "1767"]
[BlackElo "2377"]
[Result "1-0"]
[Round "05"]
[TimeControl "180+2"]
[Date "2023.03.07"]
[WhiteClock "0:00:07"]
[BlackClock "0:00:01"]

1. d4 {[%clk 0:03:00]}  Nf6 {[%clk 0:02:58]} 2. c3 {[%clk 0:03:00]}  e6 {[%clk 0:02:58]} 3. Nf3 {[%clk 0:03:00]}  c5 {[%clk 0:02:57]} 4. g3 {[%clk 0:02:59]}  d5 {[%clk 0:02:56]} 5. Bg2 {[%clk 0:02:59]}  Be7 {[%clk 0:02:57]} 6. O-O {[%clk 0:02:58]}  O-O {[%clk 0:02:56]} 7. Nbd2 {[%clk 0:02:52]}  Nc6 {[%clk 0:02:52]} 8. dxc5 {[%clk 0:02:52]}  Bxc5 {[%clk 0:02:50]} 9. Nb3 {[%clk 0:02:53]}  Bb6 {[%clk 0:02:50]} 10. Bf4 {[%clk 0:02:47]}  Qe7 {[%clk 0:02:47]} 11. Ne5 {[%clk 0:02:28]}  Nh5 {[%clk 0:02:38]} 12. e3 {[%clk 0:02:06]}  Nxf4 {[%clk 0:02:30]} 13. exf4 {[%clk 0:02:04]}  Nxe5 {[%clk 0:02:13]} 14. fxe5 {[%clk 0:02:03]}  Bd7 {[%clk 0:02:13]} 15. Nd4 {[%clk 0:02:00]}  Rac8 {[%clk 0:01:46]} 16. f4 {[%clk 0:01:47]}  Rc4 {[%clk 0:01:39]} 17. f5 {[%clk 0:01:10]}  exf5 {[%clk 0:00:51]} 18. Bxd5 {[%clk 0:01:09]}  Rc7 {[%clk 0:00:52]} 19. Re1 {[%clk 0:00:44]}  Bc8 {[%clk 0:00:36]} 20. Qf3 {[%clk 0:00:43]}  Rd8 {[%clk 0:00:29]} 21. Rad1 {[%clk 0:00:39]}  Rcd7 {[%clk 0:00:29]} 22. c4 {[%clk 0:00:32]}  Bc5 {[%clk 0:00:20]} 23. Kg2 {[%clk 0:00:31]}  Rc7 {[%clk 0:00:15]} 24. Nxf5 {[%clk 0:00:25]}  Qf8 {[%clk 0:00:13]} 25. Rf1 {[%clk 0:00:21]}  Re8 {[%clk 0:00:11]} 26. Rde1 {[%clk 0:00:19]}  Bb4 {[%clk 0:00:07]} 27. Re2 {[%clk 0:00:18]}  Bxf5 {[%clk 0:00:05]} 28. Qxf5 {[%clk 0:00:18]}  Rce7 {[%clk 0:00:06]} 29. h4 {[%clk 0:00:14]}  g6 {[%clk 0:00:03]} 30. Qf6 {[%clk 0:00:12]}  Qg7 {[%clk 0:00:03]} 31. Ref2 {[%clk 0:00:08]}  Qxf6 {[%clk 0:00:01]} 32. Rxf6 {[%clk 0:00:07]} 1-0


[Site "https://www.chess.com"]

[Event "Titled Tuesday Blitz March 07 Early 2023"]
[White "babbilator"]
[Black "Buksa, Nataliya"]
[BlackFideId "14123622"]
[WhiteElo "2209"]
[BlackElo "2316"]
[Result "1/2-1/2"]
[Round "05"]
[TimeControl "180+2"]
[Date "2023.03.07"]
[WhiteClock "0:01:06"]
[BlackClock "0:01:24"]

1. e4 {[%clk 0:03:00]}  c5 {[%clk 0:02:57]} 2. Nc3 {[%clk 0:03:01]}  Nc6 {[%clk 0:02:56]} 3. Nf3 {[%clk 0:03:01]}  e5 {[%clk 0:02:55]} 4. Bc4 {[%clk 0:03:00]}  Be7 {[%clk 0:02:55]} 5. d3 {[%clk 0:03:00]}  d6 {[%clk 0:02:56]} 6. Nd2 {[%clk 0:02:58]}  Bg5 {[%clk 0:02:55]} 7. Nf1 {[%clk 0:02:45]}  Bxc1 {[%clk 0:02:54]} 8. Rxc1 {[%clk 0:02:46]}  Nf6 {[%clk 0:02:55]} 9. Ne3 {[%clk 0:02:46]}  O-O {[%clk 0:02:55]} 10. Ncd5 {[%clk 0:02:46]}  a6 {[%clk 0:02:55]} 11. a4 {[%clk 0:02:43]}  Rb8 {[%clk 0:02:55]} 12. O-O {[%clk 0:02:31]}  b5 {[%clk 0:02:55]} 13. axb5 {[%clk 0:02:31]}  axb5 {[%clk 0:02:56]} 14. Bb3 {[%clk 0:02:29]}  Nxd5 {[%clk 0:02:56]} 15. Bxd5 {[%clk 0:02:19]}  Ne7 {[%clk 0:02:57]} 16. Ra1 {[%clk 0:02:13]}  Be6 {[%clk 0:02:54]} 17. Bxe6 {[%clk 0:01:52]}  fxe6 {[%clk 0:02:55]} 18. Ra6 {[%clk 0:01:47]}  Qd7 {[%clk 0:02:46]} 19. Qa1 {[%clk 0:01:46]}  Nc6 {[%clk 0:02:46]} 20. c3 {[%clk 0:01:44]}  b4 {[%clk 0:02:45]} 21. Nc4 {[%clk 0:01:41]}  Qc7 {[%clk 0:02:34]} 22. Qa4 {[%clk 0:01:33]}  Rfc8 {[%clk 0:02:33]} 23. Ra1 {[%clk 0:01:30]}  h6 {[%clk 0:02:07]} 24. h3 {[%clk 0:01:30]}  Rb7 {[%clk 0:02:01]} 25. Ra8 {[%clk 0:01:18]}  Rbb8 {[%clk 0:02:00]} 26. Ra6 {[%clk 0:01:17]}  Kh7 {[%clk 0:01:58]} 27. Kh2 {[%clk 0:01:08]}  Rb7 {[%clk 0:01:52]} 28. Ra8 {[%clk 0:01:06]}  Rbb8 {[%clk 0:01:51]} 29. Ra6 {[%clk 0:01:06]}  Kg8 {[%clk 0:01:24]} 30. Kg1 {[%clk 0:01:06]} 1/2-1/2


[Site "https://www.chess.com"]

[Event "Titled Tuesday Blitz March 07 Early 2023"]
[White "Mortazavi, Ali"]
[Black "Samarth, J Rao"]
[WhiteFideId "401323"]
[BlackFideId "46652370"]
[WhiteElo "2339"]
[BlackElo "1564"]
[Result "0-1"]
[Round "05"]
[TimeControl "180+2"]
[Date "2023.03.07"]
[WhiteClock "0:00:01"]
[BlackClock "0:00:22"]

1. e4 {[%clk 0:03:00]}  c5 {[%clk 0:02:59]} 2. Nc3 {[%clk 0:03:00]}  e6 {[%clk 0:02:58]} 3. Nf3 {[%clk 0:03:00]}  a6 {[%clk 0:02:59]} 4. g3 {[%clk 0:03:00]}  b5 {[%clk 0:02:57]} 5. Bg2 {[%clk 0:03:01]}  Bb7 {[%clk 0:02:56]} 6. d3 {[%clk 0:03:02]}  Nf6 {[%clk 0:02:51]} 7. e5 {[%clk 0:03:00]}  Nd5 {[%clk 0:02:48]} 8. Ne4 {[%clk 0:02:57]}  Be7 {[%clk 0:02:43]} 9. Qe2 {[%clk 0:02:44]}  O-O {[%clk 0:02:43]} 10. c4 {[%clk 0:02:44]}  Nb4 {[%clk 0:02:39]} 11. O-O {[%clk 0:02:35]}  N4c6 {[%clk 0:02:15]} 12. Be3 {[%clk 0:02:26]}  Qb6 {[%clk 0:02:15]} 13. a3 {[%clk 0:01:57]}  Nd4 {[%clk 0:02:05]} 14. Bxd4 {[%clk 0:01:50]}  cxd4 {[%clk 0:02:06]} 15. b4 {[%clk 0:01:50]}  Bxe4 {[%clk 0:01:49]} 16. Qxe4 {[%clk 0:01:49]}  Nc6 {[%clk 0:01:50]} 17. c5 {[%clk 0:01:47]}  Qc7 {[%clk 0:01:49]} 18. Nxd4 {[%clk 0:01:47]}  Nxe5 {[%clk 0:01:42]} 19. Qxa8 {[%clk 0:01:23]}  Rxa8 {[%clk 0:01:41]} 20. Bxa8 {[%clk 0:01:24]}  Nxd3 {[%clk 0:01:38]} 21. Rad1 {[%clk 0:01:21]}  Nb2 {[%clk 0:01:36]} 22. Rd2 {[%clk 0:01:13]}  Nc4 {[%clk 0:01:37]} 23. Rd3 {[%clk 0:01:14]}  g6 {[%clk 0:01:14]} 24. Bg2 {[%clk 0:01:12]}  Bf6 {[%clk 0:01:05]} 25. Nb3 {[%clk 0:01:04]}  Bb2 {[%clk 0:00:45]} 26. Rfd1 {[%clk 0:01:01]}  Ne5 {[%clk 0:00:45]} 27. Rd4 {[%clk 0:00:34]}  Bxd4 {[%clk 0:00:44]} 28. Rxd4 {[%clk 0:00:33]}  Nc4 {[%clk 0:00:41]} 29. h4 {[%clk 0:00:29]}  Nxa3 {[%clk 0:00:38]} 30. Rd6 {[%clk 0:00:26]}  Nc2 {[%clk 0:00:30]} 31. Rxa6 {[%clk 0:00:18]}  Nxb4 {[%clk 0:00:30]} 32. Ra8+ {[%clk 0:00:18]}  Kg7 {[%clk 0:00:30]} 33. h5 {[%clk 0:00:18]}  gxh5 {[%clk 0:00:29]} 34. Kh2 {[%clk 0:00:18]}  h4 {[%clk 0:00:29]} 35. Ra5 {[%clk 0:00:12]}  Nd3 {[%clk 0:00:29]} 36. Rxb5 {[%clk 0:00:05]}  Nxf2 {[%clk 0:00:28]} 37. Kg1 {[%clk 0:00:05]}  Qxg3 {[%clk 0:00:26]} 38. Kf1 {[%clk 0:00:03]}  h3 {[%clk 0:00:26]} 39. Ba8 {[%clk 0:00:03]}  h2 {[%clk 0:00:27]} 40. Rb4 {[%clk 0:00:02]}  Nd3 {[%clk 0:00:22]} 41. Rd4 {[%clk 0:00:01]}  Qf2# {[%clk 0:00:22]} 0-1


[Site "https://www.chess.com"]

[Event "Titled Tuesday Blitz March 07 Early 2023"]
[White "Delorme, Alban"]
[Black "Bettalli, Francesco"]
[WhiteFideId "623636"]
[BlackFideId "2816453"]
[WhiteElo "2196"]
[BlackElo "2216"]
[Result "1-0"]
[Round "05"]
[TimeControl "180+2"]
[Date "2023.03.07"]
[WhiteClock "0:00:32"]
[BlackClock "0:00:54"]

1. e4 {[%clk 0:03:00]}  g6 {[%clk 0:02:53]} 2. d4 {[%clk 0:02:57]}  Bg7 {[%clk 0:02:53]} 3. Nc3 {[%clk 0:02:57]}  c6 {[%clk 0:02:53]} 4. Be3 {[%clk 0:02:57]}  d5 {[%clk 0:02:53]} 5. Be2 {[%clk 0:02:48]}  Nf6 {[%clk 0:02:48]} 6. e5 {[%clk 0:02:43]}  Nfd7 {[%clk 0:02:46]} 7. Nf3 {[%clk 0:02:42]}  Nf8 {[%clk 0:02:45]} 8. O-O {[%clk 0:02:37]}  Bf5 {[%clk 0:02:43]} 9. Nh4 {[%clk 0:02:33]}  e6 {[%clk 0:02:41]} 10. Nxf5 {[%clk 0:02:12]}  exf5 {[%clk 0:02:42]} 11. Qd2 {[%clk 0:02:07]}  Ne6 {[%clk 0:02:32]} 12. f4 {[%clk 0:02:04]}  Nd7 {[%clk 0:02:29]} 13. Bf3 {[%clk 0:02:03]}  h5 {[%clk 0:02:29]} 14. Ne2 {[%clk 0:02:03]}  Nb6 {[%clk 0:02:29]} 15. b3 {[%clk 0:02:00]}  a5 {[%clk 0:02:28]} 16. Qd3 {[%clk 0:01:54]}  Bf8 {[%clk 0:02:26]} 17. c4 {[%clk 0:01:52]}  a4 {[%clk 0:02:24]} 18. Rfc1 {[%clk 0:01:47]}  Ba3 {[%clk 0:02:10]} 19. Rc2 {[%clk 0:01:44]}  Be7 {[%clk 0:02:09]} 20. c5 {[%clk 0:01:33]}  Nd7 {[%clk 0:02:07]} 21. b4 {[%clk 0:01:33]}  h4 {[%clk 0:02:00]} 22. b5 {[%clk 0:01:30]}  Qa5 {[%clk 0:01:54]} 23. Rb1 {[%clk 0:01:22]}  Ndf8 {[%clk 0:01:48]} 24. Bd2 {[%clk 0:01:21]}  Qc7 {[%clk 0:01:47]} 25. bxc6 {[%clk 0:01:18]}  bxc6 {[%clk 0:01:48]} 26. Rcb2 {[%clk 0:01:15]}  Nd8 {[%clk 0:01:41]} 27. Nc3 {[%clk 0:01:06]}  Nfe6 {[%clk 0:01:40]} 28. Bxd5 {[%clk 0:00:42]}  cxd5 {[%clk 0:01:33]} 29. Nxd5 {[%clk 0:00:42]}  Qc6 {[%clk 0:01:19]} 30. Nxe7 {[%clk 0:00:41]}  Kxe7 {[%clk 0:01:18]} 31. d5 {[%clk 0:00:38]}  Qxc5+ {[%clk 0:01:18]} 32. Be3 {[%clk 0:00:39]}  Qc8 {[%clk 0:01:11]} 33. dxe6 {[%clk 0:00:38]}  fxe6 {[%clk 0:01:03]} 34. Qd6+ {[%clk 0:00:39]}  Kf7 {[%clk 0:01:03]} 35. Rc1 {[%clk 0:00:37]}  Qa6 {[%clk 0:00:56]} 36. Rc7+ {[%clk 0:00:35]}  Kg8 {[%clk 0:00:54]} 37. Qe7 {[%clk 0:00:32]} 1-0


[Site "https://www.chess.com"]

[Event "Titled Tuesday Blitz March 07 Early 2023"]
[White "Leenhouts, Koen"]
[Black "Pein, Jonathan"]
[WhiteFideId "1008439"]
[BlackFideId "417092"]
[WhiteElo "2409"]
[BlackElo "2151"]
[Result "1-0"]
[Round "05"]
[TimeControl "180+2"]
[Date "2023.03.07"]
[WhiteClock "0:00:54"]
[BlackClock "0:01:00"]

1. e4 {[%clk 0:02:16]}  e5 {[%clk 0:02:58]} 2. Nf3 {[%clk 0:02:13]}  d6 {[%clk 0:02:58]} 3. d4 {[%clk 0:02:13]}  exd4 {[%clk 0:02:59]} 4. Nxd4 {[%clk 0:02:13]}  Nf6 {[%clk 0:03:00]} 5. Nc3 {[%clk 0:02:13]}  g6 {[%clk 0:03:01]} 6. Bc4 {[%clk 0:02:11]}  Bg7 {[%clk 0:03:01]} 7. O-O {[%clk 0:02:10]}  O-O {[%clk 0:03:01]} 8. Bb3 {[%clk 0:02:10]}  Nbd7 {[%clk 0:03:01]} 9. Bg5 {[%clk 0:02:05]}  h6 {[%clk 0:03:01]} 10. Bh4 {[%clk 0:02:03]}  Nc5 {[%clk 0:03:01]} 11. Re1 {[%clk 0:01:59]}  g5 {[%clk 0:02:55]} 12. Bg3 {[%clk 0:01:58]}  Nxb3 {[%clk 0:02:53]} 13. cxb3 {[%clk 0:01:55]}  Ng4 {[%clk 0:02:44]} 14. Nf5 {[%clk 0:01:47]}  Bxf5 {[%clk 0:02:42]} 15. exf5 {[%clk 0:01:48]}  Ne5 {[%clk 0:02:34]} 16. Qh5 {[%clk 0:01:47]}  c6 {[%clk 0:02:24]} 17. Bxe5 {[%clk 0:01:41]}  dxe5 {[%clk 0:02:07]} 18. Ne4 {[%clk 0:01:40]}  f6 {[%clk 0:02:06]} 19. Rad1 {[%clk 0:01:37]}  Qe8 {[%clk 0:02:00]} 20. Qxe8 {[%clk 0:01:33]}  Raxe8 {[%clk 0:02:01]} 21. Rd7 {[%clk 0:01:33]}  Rf7 {[%clk 0:02:02]} 22. Rxf7 {[%clk 0:01:32]}  Kxf7 {[%clk 0:02:00]} 23. Nd6+ {[%clk 0:01:32]}  Ke7 {[%clk 0:02:00]} 24. Nxe8 {[%clk 0:01:33]}  Kxe8 {[%clk 0:02:01]} 25. f3 {[%clk 0:01:31]}  Bf8 {[%clk 0:02:02]} 26. g4 {[%clk 0:01:30]}  Bc5+ {[%clk 0:02:02]} 27. Kf1 {[%clk 0:01:29]}  Bd4 {[%clk 0:02:02]} 28. Re2 {[%clk 0:01:22]}  a5 {[%clk 0:01:56]} 29. Ke1 {[%clk 0:01:21]}  Ke7 {[%clk 0:01:56]} 30. Kd1 {[%clk 0:01:21]}  Kd6 {[%clk 0:01:56]} 31. Kc2 {[%clk 0:01:21]}  b5 {[%clk 0:01:45]} 32. a4 {[%clk 0:01:18]}  b4 {[%clk 0:01:44]} 33. Kd3 {[%clk 0:01:16]}  Kd5 {[%clk 0:01:43]} 34. h3 {[%clk 0:01:16]}  Bb6 {[%clk 0:01:33]} 35. Rh2 {[%clk 0:01:14]}  Bg1 {[%clk 0:01:30]} 36. Rg2 {[%clk 0:01:12]}  Bd4 {[%clk 0:01:29]} 37. Rh2 {[%clk 0:01:08]}  Bg1 {[%clk 0:01:29]} 38. Rh1 {[%clk 0:01:09]}  Bd4 {[%clk 0:01:29]} 39. h4 {[%clk 0:01:09]}  Bxb2 {[%clk 0:01:21]} 40. hxg5 {[%clk 0:01:10]}  hxg5 {[%clk 0:01:21]} 41. Rh8 {[%clk 0:01:08]}  c5 {[%clk 0:00:55]} 42. Rd8+ {[%clk 0:01:09]}  Kc6 {[%clk 0:00:55]} 43. Kc4 {[%clk 0:01:06]}  e4 {[%clk 0:00:51]} 44. fxe4 {[%clk 0:01:04]}  Bd4 {[%clk 0:00:51]} 45. Rxd4 {[%clk 0:00:54]}  cxd4 {[%clk 0:00:52]} 46. Kxd4 {[%clk 0:00:54]}  Kd6 {[%clk 0:00:53]} 47. e5+ {[%clk 0:00:54]}  fxe5+ {[%clk 0:00:50]} 48. Ke4 {[%clk 0:00:55]}  Kd7 {[%clk 0:00:49]} 49. Kxe5 {[%clk 0:00:56]}  Ke7 {[%clk 0:00:50]} 50. f6+ {[%clk 0:00:56]}  Kf7 {[%clk 0:00:51]} 51. Kf5 {[%clk 0:00:56]}  Ke8 {[%clk 0:00:51]} 52. Kxg5 {[%clk 0:00:56]}  Kd8 {[%clk 0:00:52]} 53. Kf5 {[%clk 0:00:57]}  Kc8 {[%clk 0:00:53]} 54. g5 {[%clk 0:00:58]}  Kb7 {[%clk 0:00:54]} 55. g6 {[%clk 0:00:58]}  Ka8 {[%clk 0:00:55]} 56. g7 {[%clk 0:00:59]}  Ka7 {[%clk 0:00:56]} 57. g8=Q {[%clk 0:00:59]}  Kb6 {[%clk 0:00:57]} 58. Qe6+ {[%clk 0:00:59]}  Kc5 {[%clk 0:00:58]} 59. f7 {[%clk 0:00:59]}  Kd4 {[%clk 0:00:59]} 60. Qe4+ {[%clk 0:00:57]}  Kc3 {[%clk 0:01:00]} 61. Qc4+ {[%clk 0:00:57]}  Kb2 {[%clk 0:01:00]} 62. f8=Q {[%clk 0:00:57]}  Ka3 {[%clk 0:01:01]} 63. Qd6 {[%clk 0:00:56]}  Kb2 {[%clk 0:01:00]} 64. Qd2+ {[%clk 0:00:56]}  Ka3 {[%clk 0:01:01]} 65. Qdc1+ {[%clk 0:00:53]}  Ka2 {[%clk 0:01:00]} 66. Q4c2# {[%clk 0:00:54]} 1-0


[Site "https://www.chess.com"]

[Event "Titled Tuesday Blitz March 07 Early 2023"]
[White "Kalajzic, Ivan"]
[Black "Benaddi, Mouhcine"]
[WhiteFideId "14506378"]
[BlackFideId "9001050"]
[WhiteElo "2203"]
[BlackElo "2036"]
[Result "0-1"]
[Round "05"]
[TimeControl "180+2"]
[Date "2023.03.07"]
[WhiteClock "0:00:19"]
[BlackClock "0:01:44"]

1. d4 {[%clk 0:02:53]}  c6 {[%clk 0:03:00]} 2. Nc3 {[%clk 0:02:52]}  d5 {[%clk 0:03:01]} 3. Nf3 {[%clk 0:02:52]}  Nf6 {[%clk 0:03:00]} 4. Bg5 {[%clk 0:02:51]}  Ne4 {[%clk 0:02:59]} 5. Bf4 {[%clk 0:02:31]}  Nxc3 {[%clk 0:02:49]} 6. bxc3 {[%clk 0:02:30]}  Nd7 {[%clk 0:02:47]} 7. c4 {[%clk 0:02:21]}  dxc4 {[%clk 0:02:44]} 8. e4 {[%clk 0:02:20]}  b5 {[%clk 0:02:40]} 9. a4 {[%clk 0:02:17]}  e5 {[%clk 0:02:36]} 10. dxe5 {[%clk 0:02:04]}  Bb4+ {[%clk 0:02:33]} 11. Bd2 {[%clk 0:02:03]}  Bc5 {[%clk 0:02:29]} 12. Be2 {[%clk 0:01:49]}  Nxe5 {[%clk 0:02:25]} 13. Nxe5 {[%clk 0:01:32]}  Qd4 {[%clk 0:02:25]} 14. Ng4 {[%clk 0:01:13]}  Bxg4 {[%clk 0:02:20]} 15. O-O {[%clk 0:01:13]}  Bxe2 {[%clk 0:02:15]} 16. Qxe2 {[%clk 0:01:14]}  O-O {[%clk 0:02:11]} 17. Rfd1 {[%clk 0:00:58]}  Qe5 {[%clk 0:02:07]} 18. Kh1 {[%clk 0:00:47]}  f5 {[%clk 0:02:03]} 19. f3 {[%clk 0:00:31]}  fxe4 {[%clk 0:02:03]} 20. fxe4 {[%clk 0:00:32]}  Rf2 {[%clk 0:02:01]} 21. Qe1 {[%clk 0:00:26]}  Raf8 {[%clk 0:01:50]} 22. Be3 {[%clk 0:00:24]}  Rf1+ {[%clk 0:01:45]} 23. Qxf1 {[%clk 0:00:20]}  Rxf1+ {[%clk 0:01:45]} 24. Rxf1 {[%clk 0:00:21]}  Bxe3 {[%clk 0:01:45]} 25. Rad1 {[%clk 0:00:19]}  h6 {[%clk 0:01:44]} 0-1


[Site "https://www.chess.com"]

[Event "Titled Tuesday Blitz March 07 Early 2023"]
[White "Vifleemskaia, Svetlana"]
[Black "Fiedorek, Michal"]
[WhiteFideId "4129490"]
[BlackFideId "1199528"]
[WhiteElo "1930"]
[BlackElo "2135"]
[Result "0-1"]
[Round "05"]
[TimeControl "180+2"]
[Date "2023.03.07"]
[WhiteClock "0:00:27"]
[BlackClock "0:01:09"]

1. d4 {[%clk 0:02:45]}  Nf6 {[%clk 0:02:59]} 2. c4 {[%clk 0:02:41]}  e6 {[%clk 0:02:58]} 3. Nc3 {[%clk 0:02:40]}  Bb4 {[%clk 0:02:57]} 4. e3 {[%clk 0:02:39]}  b6 {[%clk 0:02:48]} 5. Ne2 {[%clk 0:02:40]}  Bb7 {[%clk 0:02:48]} 6. a3 {[%clk 0:02:39]}  Bxc3+ {[%clk 0:02:48]} 7. Nxc3 {[%clk 0:02:38]}  d5 {[%clk 0:02:48]} 8. Bd3 {[%clk 0:02:28]}  dxc4 {[%clk 0:02:34]} 9. Bxc4 {[%clk 0:02:28]}  Bxg2 {[%clk 0:02:33]} 10. Rg1 {[%clk 0:02:28]}  Bb7 {[%clk 0:02:33]} 11. Rxg7 {[%clk 0:02:26]}  Kf8 {[%clk 0:02:33]} 12. Rg1 {[%clk 0:02:21]}  Qd6 {[%clk 0:02:33]} 13. f4 {[%clk 0:02:07]}  Nbd7 {[%clk 0:02:21]} 14. d5 {[%clk 0:01:53]}  exd5 {[%clk 0:02:16]} 15. Bd3 {[%clk 0:01:45]}  Re8 {[%clk 0:02:15]} 16. Kf2 {[%clk 0:01:43]}  d4 {[%clk 0:01:53]} 17. Bf5 {[%clk 0:01:27]}  dxc3 {[%clk 0:01:49]} 18. Qxd6+ {[%clk 0:01:07]}  cxd6 {[%clk 0:01:49]} 19. Rd1 {[%clk 0:00:59]}  Ne4+ {[%clk 0:01:22]} 20. Bxe4 {[%clk 0:00:55]}  Bxe4 {[%clk 0:01:23]} 21. Rxd6 {[%clk 0:00:53]}  Ke7 {[%clk 0:01:21]} 22. Rd4 {[%clk 0:00:50]}  f5 {[%clk 0:01:21]} 23. bxc3 {[%clk 0:00:50]}  Rhg8 {[%clk 0:01:20]} 24. a4 {[%clk 0:00:45]}  Nc5 {[%clk 0:01:20]} 25. Ba3 {[%clk 0:00:42]}  Rg2+ {[%clk 0:01:19]} 26. Kf1 {[%clk 0:00:38]}  Reg8 {[%clk 0:01:19]} 27. Re1 {[%clk 0:00:28]}  Rg1+ {[%clk 0:01:10]} 28. Ke2 {[%clk 0:00:27]}  R8g2+ {[%clk 0:01:09]} 0-1


[Site "https://www.chess.com"]

[Event "Titled Tuesday Blitz March 07 Early 2023"]
[White "Seletsky, Grigory"]
[Black "Mazurkiewicz, Michal"]
[WhiteFideId "14112191"]
[BlackFideId "1124943"]
[WhiteElo "2490"]
[BlackElo "2054"]
[Result "1-0"]
[Round "05"]
[TimeControl "180+2"]
[Date "2023.03.07"]
[WhiteClock "0:01:21"]
[BlackClock "0:00:03"]

1. e4 {[%clk 0:02:58]}  d6 {[%clk 0:02:59]} 2. d4 {[%clk 0:02:58]}  Nf6 {[%clk 0:03:00]} 3. f3 {[%clk 0:02:58]}  e5 {[%clk 0:02:59]} 4. d5 {[%clk 0:02:57]}  c6 {[%clk 0:02:59]} 5. c4 {[%clk 0:02:57]}  cxd5 {[%clk 0:02:59]} 6. cxd5 {[%clk 0:02:57]}  Be7 {[%clk 0:02:59]} 7. Nc3 {[%clk 0:02:57]}  O-O {[%clk 0:03:00]} 8. Be3 {[%clk 0:02:57]}  Nh5 {[%clk 0:02:57]} 9. Qd2 {[%clk 0:02:58]}  a6 {[%clk 0:02:55]} 10. O-O-O {[%clk 0:02:57]}  b5 {[%clk 0:02:56]} 11. Kb1 {[%clk 0:02:57]}  f5 {[%clk 0:02:53]} 12. Bd3 {[%clk 0:02:55]}  f4 {[%clk 0:02:51]} 13. Bf2 {[%clk 0:02:55]}  Nd7 {[%clk 0:02:44]} 14. g4 {[%clk 0:02:55]}  Nhf6 {[%clk 0:02:42]} 15. h4 {[%clk 0:02:54]}  Nb6 {[%clk 0:02:41]} 16. Rc1 {[%clk 0:02:48]}  Bd7 {[%clk 0:02:41]} 17. h5 {[%clk 0:02:46]}  Rc8 {[%clk 0:02:40]} 18. b3 {[%clk 0:02:44]}  h6 {[%clk 0:02:38]} 19. Nge2 {[%clk 0:02:39]}  Nh7 {[%clk 0:02:38]} 20. Rhe1 {[%clk 0:02:32]}  Ng5 {[%clk 0:02:37]} 21. Ng1 {[%clk 0:02:32]}  Rb8 {[%clk 0:02:27]} 22. Ka1 {[%clk 0:02:29]}  Qe8 {[%clk 0:02:00]} 23. Nb1 {[%clk 0:02:25]}  Bd8 {[%clk 0:01:58]} 24. Rc2 {[%clk 0:02:23]}  a5 {[%clk 0:01:48]} 25. Rec1 {[%clk 0:02:23]}  b4 {[%clk 0:01:32]} 26. Qe2 {[%clk 0:02:16]}  a4 {[%clk 0:01:29]} 27. Nd2 {[%clk 0:02:16]}  Ra8 {[%clk 0:01:26]} 28. Kb1 {[%clk 0:02:11]}  Ra5 {[%clk 0:00:20]} 29. Nc4 {[%clk 0:01:52]}  Nxc4 {[%clk 0:00:20]} 30. Bxc4 {[%clk 0:01:51]}  axb3 {[%clk 0:00:17]} 31. axb3 {[%clk 0:01:46]}  Bc7 {[%clk 0:00:18]} 32. Ra2 {[%clk 0:01:45]}  Qa8 {[%clk 0:00:17]} 33. Rcc2 {[%clk 0:01:42]}  Rb8 {[%clk 0:00:16]} 34. Rxa5 {[%clk 0:01:41]}  Qxa5 {[%clk 0:00:17]} 35. Ra2 {[%clk 0:01:41]}  Bb6 {[%clk 0:00:05]} 36. Rxa5 {[%clk 0:01:39]}  Bxa5 {[%clk 0:00:05]} 37. Qa2 {[%clk 0:01:30]}  Ra8 {[%clk 0:00:05]} 38. Bb6 {[%clk 0:01:27]}  Bxb6 {[%clk 0:00:04]} 39. Qxa8+ {[%clk 0:01:26]}  Kh7 {[%clk 0:00:05]} 40. Qb7 {[%clk 0:01:23]}  Bxg1 {[%clk 0:00:04]} 41. Qxd7 {[%clk 0:01:24]}  Nxf3 {[%clk 0:00:05]} 42. Qf5+ {[%clk 0:01:24]}  Kh8 {[%clk 0:00:04]} 43. Bb5 {[%clk 0:01:22]}  Nd4 {[%clk 0:00:03]} 44. Qc8+ {[%clk 0:01:21]}  Kh7 {[%clk 0:00:03]} 45. Be8 {[%clk 0:01:21]} 1-0


[Site "https://www.chess.com"]

[Event "Titled Tuesday Blitz March 07 Early 2023"]
[White "Bogaudinov, Rushan"]
[Black "Heinemann, Josefine"]
[WhiteFideId "4129288"]
[BlackFideId "12900460"]
[WhiteElo "1949"]
[BlackElo "2342"]
[Result "1-0"]
[Round "05"]
[TimeControl "180+2"]
[Date "2023.03.07"]
[WhiteClock "0:00:26"]
[BlackClock "0:00:02"]

1. a3 {[%clk 0:02:58]}  g6 {[%clk 0:02:52]} 2. d4 {[%clk 0:02:57]}  Nf6 {[%clk 0:02:48]} 3. Nf3 {[%clk 0:02:55]}  Bg7 {[%clk 0:02:48]} 4. c4 {[%clk 0:02:52]}  O-O {[%clk 0:02:47]} 5. e3 {[%clk 0:02:50]}  d6 {[%clk 0:02:43]} 6. Nc3 {[%clk 0:02:48]}  Nbd7 {[%clk 0:02:39]} 7. Be2 {[%clk 0:02:39]}  e5 {[%clk 0:02:38]} 8. O-O {[%clk 0:02:38]}  Re8 {[%clk 0:02:27]} 9. b4 {[%clk 0:02:31]}  c6 {[%clk 0:02:26]} 10. Bb2 {[%clk 0:02:27]}  e4 {[%clk 0:02:18]} 11. Nd2 {[%clk 0:02:27]}  Nf8 {[%clk 0:02:18]} 12. d5 {[%clk 0:02:24]}  cxd5 {[%clk 0:02:06]} 13. cxd5 {[%clk 0:02:24]}  Nxd5 {[%clk 0:01:59]} 14. Ndxe4 {[%clk 0:02:21]}  Nxc3 {[%clk 0:01:56]} 15. Nxc3 {[%clk 0:02:19]}  d5 {[%clk 0:01:47]} 16. Na4 {[%clk 0:02:18]}  Bxb2 {[%clk 0:01:42]} 17. Nxb2 {[%clk 0:02:18]}  Bf5 {[%clk 0:01:42]} 18. Rc1 {[%clk 0:02:12]}  Rc8 {[%clk 0:01:32]} 19. Qd4 {[%clk 0:02:11]}  b6 {[%clk 0:01:20]} 20. Ba6 {[%clk 0:02:08]}  Rxc1 {[%clk 0:01:19]} 21. Rxc1 {[%clk 0:02:07]}  Ne6 {[%clk 0:01:19]} 22. Qd2 {[%clk 0:02:01]}  d4 {[%clk 0:01:16]} 23. Nc4 {[%clk 0:01:53]}  dxe3 {[%clk 0:01:14]} 24. Qxd8 {[%clk 0:01:52]}  Rxd8 {[%clk 0:01:12]} 25. Nxe3 {[%clk 0:01:52]}  Bd3 {[%clk 0:01:10]} 26. Bb7 {[%clk 0:01:37]}  Kg7 {[%clk 0:01:01]} 27. Rd1 {[%clk 0:01:32]}  Bb5 {[%clk 0:00:51]} 28. Rxd8 {[%clk 0:01:30]}  Nxd8 {[%clk 0:00:52]} 29. Bd5 {[%clk 0:01:30]}  h5 {[%clk 0:00:40]} 30. f3 {[%clk 0:01:29]}  Kf6 {[%clk 0:00:40]} 31. Kf2 {[%clk 0:01:25]}  Ke5 {[%clk 0:00:40]} 32. Ke1 {[%clk 0:01:16]}  Kd4 {[%clk 0:00:35]} 33. Kd2 {[%clk 0:01:16]}  Bc6 {[%clk 0:00:24]} 34. Bb3 {[%clk 0:01:12]}  a5 {[%clk 0:00:19]} 35. Nc2+ {[%clk 0:01:12]}  Ke5 {[%clk 0:00:19]} 36. Ke3 {[%clk 0:01:09]}  Bd5 {[%clk 0:00:19]} 37. Ba4 {[%clk 0:01:05]}  Ne6 {[%clk 0:00:19]} 38. g3 {[%clk 0:01:03]}  g5 {[%clk 0:00:18]} 39. Ne1 {[%clk 0:01:00]}  axb4 {[%clk 0:00:18]} 40. Nd3+ {[%clk 0:00:57]}  Kd6 {[%clk 0:00:17]} 41. axb4 {[%clk 0:00:58]}  f6 {[%clk 0:00:16]} 42. h4 {[%clk 0:00:51]}  gxh4 {[%clk 0:00:15]} 43. gxh4 {[%clk 0:00:52]}  Nc7 {[%clk 0:00:12]} 44. Nf4 {[%clk 0:00:47]}  Bf7 {[%clk 0:00:12]} 45. Kd4 {[%clk 0:00:45]}  Ne6+ {[%clk 0:00:08]} 46. Nxe6 {[%clk 0:00:43]}  Bxe6 {[%clk 0:00:07]} 47. Be8 {[%clk 0:00:43]}  Bd5 {[%clk 0:00:05]} 48. Ke3 {[%clk 0:00:40]}  Ke5 {[%clk 0:00:04]} 49. Bxh5 {[%clk 0:00:40]}  f5 {[%clk 0:00:03]} 50. f4+ {[%clk 0:00:38]}  Kf6 {[%clk 0:00:04]} 51. Kd4 {[%clk 0:00:37]}  Be4 {[%clk 0:00:02]} 52. Kc4 {[%clk 0:00:33]}  Bc6 {[%clk 0:00:02]} 53. Kd4 {[%clk 0:00:33]}  Be4 {[%clk 0:00:01]} 54. Be2 {[%clk 0:00:32]}  Bc6 {[%clk 0:00:01]} 55. Bd3 {[%clk 0:00:28]}  Bf3 {[%clk 0:00:01]} 56. Bc4 {[%clk 0:00:27]}  Bc6 {[%clk 0:00:01]} 57. Bd5 {[%clk 0:00:27]}  Bb5 {[%clk 0:00:02]} 58. Bf3 {[%clk 0:00:26]} 1-0


[Site "https://www.chess.com"]